bitfinex/quotes_SOLUSD_20250315
["timestamp","ask_amount","ask_price","bid_price","bid_amount"]
[1742070084116,14.44711472,135.52,135.49,0.063]
[1742070084402,14.44711472,135.51,135.49,0.063]
[1742070085305,21.82691472,135.51,135.49,0.063]
[1742070088204,14.58927629,135.5,135.49,0.063]
[1742070088416,1.5560251,135.53,135.49,14.51011472]
[1742070088417,0.03,135.53,135.49,14.51011472]
[1742070088893,14.61927629,135.53,135.49,0.063]
[1742070089093,14.44711472,135.51,135.49,0.063]
[1742070089989,14.44711472,135.5,135.49,0.063]
[1742070090518,21.82711472,135.5,135.49,0.063]
[1742070090927,14.44711472,135.5,135.49,0.063]
[1742070092122,0.14216157,135.52,135.49,0.063]
[1742070092320,14.44711472,135.51,135.49,0.063]
[1742070094913,21.82671472,135.51,135.49,0.063]
[1742070095098,14.44711472,135.51,135.49,0.063]
[1742070096924,21.82681472,135.51,135.49,0.063]
[1742070098937,14.44711472,135.5,135.49,0.063]
[1742070100011,21.82681472,135.51,135.49,0.063]
[1742070100737,21.82681472,135.51,135.49,20.063]
[1742070100906,0.03,135.52,135.49,0.063]
[1742070108822,0.03,135.52,135.49,14.51011472]
[1742070109021,0.03,135.52,135.5,7.38]
[1742070114542,0.03,135.52,135.5,21.82711472]
[1742070118528,0.03,135.52,135.51,14.44711472]
[1742070119345,0.03,135.52,135.5,21.82711472]
[1742070120632,0.03,135.52,135.5,28.16711472]
[1742070128661,0.03,135.52,135.51,21.82661472]
[1742070130163,0.03,135.52,135.51,7.3795]
[1742070130869,0.03,135.52,135.49,78.906312]
[1742070131165,14.47711472,135.52,135.49,78.906312]
[1742070131751,14.47711472,135.52,135.49,0.063]
[1742070132771,21.85611472,135.52,135.49,0.063]
[1742070133148,21.85611472,135.52,135.5,0.063]
[1742070133645,0.17216157,135.52,135.5,0.063]
[1742070133842,0.03,135.52,135.5,0.063]
[1742070135052,0.31432314,135.52,135.5,0.063]
[1742070135367,14.44711472,135.51,135.5,0.063]
[1742070137178,18.933972,135.5,135.43,0.063]
[1742070137373,14.44711472,135.45,135.43,0.063]
[1742070137875,14.44711472,135.46,135.43,7.4468]
[1742070138074,14.44711472,135.47,135.43,0.063]
[1742070138252,14.44711472,135.46,135.43,0.063]
[1742070139682,14.44711472,135.45,135.43,0.063]
[1742070141282,14.44711472,135.46,135.43,0.063]
[1742070144673,14.44711472,135.47,135.43,0.063]
[1742070144874,14.44711472,135.48,135.43,14.51011472]
[1742070145276,14.44711472,135.47,135.43,0.063]
[1742070145968,14.44711472,135.46,135.43,0.063]
[1742070146368,14.44711472,135.45,135.43,0.063]
[1742070147394,14.44711472,135.46,135.43,0.063]
[1742070152693,22.11353786,135.47,135.43,0.063]
[1742070153972,14.73143786,135.47,135.43,0.063]
[1742070154174,22.11313786,135.47,135.43,0.063]
[1742070154375,14.44711472,135.48,135.43,0.063]
[1742070154576,0.03,135.49,135.45,14.44711472]
[1742070155776,0.03,135.49,135.46,7.3822]
[1742070157504,14.47711472,135.49,135.45,7.3825]
[1742070164097,14.47711472,135.49,135.43,0.063]
[1742070164098,14.44711472,135.47,135.43,0.063]
[1742070164297,14.44711472,135.44,135.43,0.063]
[1742070165480,14.73143786,135.45,135.43,0.063]
[1742070166680,22.11433786,135.45,135.43,0.063]
[1742070167282,22.11433786,135.45,135.4,7.6016]
[1742070169004,22.11433786,135.45,135.4,7.6646]
[1742070169785,22.11433786,135.45,135.4,7.1646]
[1742070171690,14.44711472,135.44,135.4,7.1646]
[1742070171891,21.83051472,135.44,135.4,7.1646]
[1742070174007,21.83051472,135.44,135.4,6.6646]
[1742070174808,7.3834,135.44,135.4,6.6646]
[1742070175109,7.3834,135.44,135.4,14.0501]
[1742070175306,7.3834,135.44,135.4,6.6646]
[1742070175608,7.3834,135.44,135.4,14.05]
[1742070176910,7.3834,135.44,135.4,28.49711472]
[1742070177487,7.3834,135.44,135.4,27.99711472]
[1742070177686,22.11443786,135.45,135.4,27.99711472]
[1742070180794,22.14443786,135.45,135.4,27.99711472]
[1742070183425,22.14443786,135.45,135.4,21.89551472]
[1742070185923,22.14443786,135.45,135.4,14.51011472]
[1742070186100,14.44711472,135.44,135.4,0.063]
[1742070186513,21.83051472,135.44,135.4,0.063]
[1742070192218,7.3834,135.44,135.4,21.89551472]
[1742070192416,22.14443786,135.45,135.4,21.89551472]
[1742070195228,22.14443786,135.45,135.4,7.4484]
[1742070199539,14.44711472,135.44,135.4,7.4484]
[1742070199745,22.14443786,135.45,135.4,7.4484]
[1742070206221,14.44711472,135.44,135.4,7.4484]
[1742070208328,14.44711472,135.43,135.4,0.063]
[1742070208516,14.44711472,135.42,135.4,0.063]
[1742070210728,21.83151472,135.42,135.4,0.063]
[1742070212522,14.44711472,135.41,135.4,0.063]
[1742070213632,21.83201472,135.41,135.4,0.063]
[1742070214339,22.11633786,135.41,135.4,0.063]
[1742070216118,22.14633786,135.41,135.4,0.063]
[1742070216319,40.79598672,135.41,135.4,0.063]
[1742070216635,47.77148671,135.41,135.4,0.063]
[1742070216931,47.27148672,135.41,135.4,0.063]
[1742070217315,22.14633786,135.41,135.4,0.063]
[1742070218518,26.36821422,135.41,135.4,0.063]
[1742070219837,33.75311422,135.41,135.4,0.063]
[1742070220520,22.14633786,135.41,135.4,0.063]
[1742070225225,14.47711472,135.41,135.4,0.063]
[1742070226539,0.03,135.41,135.4,0.063]
[1742070227944,0.03,135.41,135.4,1.6844]
[1742070228444,0.03,135.41,135.4,16.13151472]
[1742070228626,0.03,135.41,135.4,23.51701472]
[1742070229127,0.03,135.41,135.4,9.0699]
[1742070230449,0.03,135.41,135.4,0.063]
[1742070238338,0.03,135.41,135.4,14.51011472]
[1742070240657,0.03,135.41,135.4,0.063]
[1742070241563,0.03,135.41,135.4,14.51011472]
[1742070242059,0.03,135.41,135.4,33.15976358]
[1742070242558,0.03,135.41,135.4,40.54526358]
[1742070246167,0.03,135.41,135.4,119.38857558]
[1742070248450,0.03,135.45,135.42,18.64964886]
[1742070248779,0.03,135.45,135.44,14.44711472]
[1742070249881,0.03,135.45,135.44,21.83041472]
[1742070255776,0.03,135.45,135.44,28.17041472]
[1742070256070,0.03,135.45,135.44,13.7233]
[1742070256272,0.03,135.45,135.44,46.82006358]
[1742070256657,0.03,135.45,135.44,13.7233]
[1742070257251,0.03,135.45,135.44,6.34]
[1742070257762,0.03,135.45,135.44,13.7233]
[1742070259184,0.03,135.45,135.44,7.3833]
[1742070262379,0.03,135.45,135.44,14.44711472]
[1742070263880,0.03,135.45,135.43,21.83091472]
[1742070266473,0.03,135.45,135.43,7.3838]
[1742070267069,14.47711472,135.45,135.41,0.063]
[1742070267767,21.86001472,135.45,135.41,0.063]
[1742070267968,14.44711472,135.44,135.41,0.063]
[1742070268173,21.86001472,135.45,135.41,0.063]
[1742070268378,14.47711472,135.45,135.41,0.063]
[1742070268573,0.03,135.45,135.41,14.51011472]
[1742070269682,0.03,135.45,135.43,14.44711472]
[1742070269873,0.03,135.45,135.44,7.3833]
[1742070270964,0.03,135.45,135.43,21.83071472]
[1742070271165,0.03,135.45,135.43,7.3836]
[1742070271890,0.03,135.45,135.42,21.83131472]
[1742070272668,0.03,135.45,135.42,40.29231472]
[1742070272971,0.03,135.45,135.44,14.44711472]
[1742070273173,0.03,135.45,135.43,14.44711472]
[1742070274189,0.03,135.45,135.44,7.3833]
[1742070276293,0.03,135.45,135.43,7.3836]
[1742070276678,0.03,135.45,135.42,21.83131472]
[1742070276878,0.03,135.45,135.42,7.3842]
[1742070278299,0.03,135.45,135.42,21.83131472]
[1742070279194,0.03,135.45,135.42,14.44711472]
[1742070279395,0.03,135.45,135.41,21.89481472]
[1742070279576,0.03,135.45,135.41,7.4477]
[1742070282500,14.47711472,135.45,135.41,0.063]
[1742070283477,21.86001472,135.45,135.41,0.063]
[1742070283673,14.44711472,135.44,135.41,0.063]
[1742070283899,14.44711472,135.43,135.41,0.063]
[1742070285901,21.83111472,135.43,135.41,0.063]
[1742070288199,14.44711472,135.42,135.41,0.063]
[1742070289199,21.83151472,135.42,135.41,0.063]
[1742070291103,22.11583786,135.42,135.41,0.063]
[1742070295701,0.14216157,135.44,135.41,0.063]
[1742070295894,0.28432314,135.44,135.41,0.063]
[1742070296301,1.5406,135.45,135.41,0.063]
[1742070296481,0.31432314,135.45,135.41,14.51011472]
[1742070297311,0.31432314,135.45,135.41,21.89461472]
[1742070298311,0.03,135.44,135.41,21.89461472]
[1742070299004,0.03,135.44,135.42,14.44711472]
[1742070300514,0.03,135.44,135.42,21.83141472]
[1742070300712,0.03,135.44,135.43,14.44711472]
[1742070302013,0.03,135.44,135.43,21.83091472]
[1742070302206,0.03,135.44,135.43,14.44711472]
[1742070302604,0.03,135.44,135.42,14.44711472]
[1742070303290,0.03,135.44,135.41,93.35342672]
[1742070303811,0.03,135.44,135.41,100.73822672]
[1742070304307,0.03,135.44,135.42,14.44711472]
[1742070304509,0.03,135.44,135.43,14.44711472]
[1742070305906,0.03,135.44,135.43,21.83091472]
[1742070306995,0.03,135.44,135.42,21.83131472]
[1742070311408,0.03,135.44,135.43,14.44711472]
[1742070312218,0.03,135.44,135.43,21.83091472]
[1742070312619,0.03,135.44,135.43,14.44711472]
[1742070312923,0.03,135.44,135.42,21.83131472]
[1742070315401,0.03,135.44,135.41,78.906312]
[1742070315597,0.03,135.44,135.41,100.73822672]
[1742070316517,0.03,135.44,135.42,14.44711472]
[1742070316717,0.03,135.44,135.43,14.44711472]
[1742070317332,0.03,135.44,135.43,21.83091472]
[1742070319254,0.03,135.44,135.42,7.3842]
[1742070319609,0.03,135.44,135.41,0.063]
[1742070320020,0.03,135.44,135.41,7.4479]
[1742070320530,0.03,135.44,135.41,21.89501472]
[1742070321709,0.03,135.44,135.43,14.44711472]
[1742070322924,0.03,135.44,135.41,119.38797558]
[1742070323817,0.03,135.44,135.42,14.44711472]
[1742070325022,0.03,135.44,135.43,14.44711472]
[1742070325840,0.03,135.44,135.43,21.83091472]
[1742070328241,0.03,135.44,135.43,40.48056358]
[1742070328433,0.03,135.44,135.43,46.88056358]
[1742070329334,0.03,135.44,135.43,125.72387558]
[1742070334444,0.03,135.45,135.43,127.37797558]
[1742070334624,0.03,135.45,135.44,33.09676358]
[1742070334838,0.03,135.49,135.45,18.64964886]
[1742070335026,0.03,135.49,135.48,14.44711472]
[1742070335726,0.03,135.49,135.48,111.94007558]
[1742070336648,0.03,135.49,135.48,119.32117558]
[1742070336852,0.03,135.49,135.48,78.843312]
[1742070338047,0.03,135.49,135.48,86.224412]
[1742070338652,0.03,135.49,135.48,100.67152672]
[1742070341353,0.03,135.49,135.48,119.32117558]
[1742070344864,0.03,135.49,135.48,125.70117558]
[1742070345357,0.03,135.49,135.48,128.04533753]
[1742070345953,0.03,135.49,135.48,49.20202553]
[1742070348042,0.03,135.49,135.48,46.85786358]
[1742070348460,0.03,135.49,135.48,129.65786358]
[1742070360562,0.03,135.52,135.49,18.64964886]
[1742070360766,0.03,135.52,135.51,14.44711472]
[1742070361850,0.03,135.52,135.51,21.82661472]
[1742070363396,0.03,135.52,135.5,21.82691472]
[1742070363570,0.03,135.52,135.48,103.60711472]
[1742070364074,0.03,135.52,135.49,14.44711472]
[1742070364869,0.03,135.52,135.49,7.3803]
[1742070365168,0.03,135.52,135.48,110.98801472]
[1742070365469,16.08731472,135.52,135.47,13.7416]
[1742070365658,1.6402,135.52,135.49,14.44711472]
[1742070365857,0.03,135.52,135.49,14.44711472]
[1742070366372,0.03,135.52,135.5,14.44711472]
[1742070366581,0.03,135.52,135.51,14.44711472]
[1742070366966,0.03,135.52,135.51,21.82661472]
[1742070367383,0.03,135.52,135.5,21.82701472]
[1742070367572,0.03,135.52,135.49,14.44711472]
[1742070368800,0.03,135.52,135.49,21.82751472]
[1742070369495,0.03,135.52,135.49,7.3804]
[1742070370387,0.03,135.52,135.49,21.82751472]
[1742070371399,0.03,135.52,135.5,14.44711472]
[1742070373002,0.03,135.52,135.51,14.44711472]
[1742070373177,0.03,135.52,135.51,21.82661472]
[1742070373494,0.03,135.53,135.51,123.27626358]
[1742070373703,0.03,135.53,135.52,20.82711472]
[1742070375607,0.03,135.54,135.52,28.20601472]
[1742070375910,0.03,135.55,135.53,33.09676358]
[1742070376072,0.03,135.55,135.54,14.44711472]
[1742070376271,0.03,135.57,135.54,14.44711472]
[1742070376272,0.0001,135.58,135.57,101.41964886]
[1742070376588,23.21355272,135.64,135.61,20.0]
[1742070376772,28.19815814,135.63,135.62,14.44711472]
[1742070377191,28.19815814,135.63,135.62,122.26676358]
[1742070377398,11.63677636,135.63,135.62,122.26676358]
[1742070377791,11.63677636,135.63,135.62,129.64026358]
[1742070378781,11.63677636,135.63,135.62,122.26676358]
[1742070379383,0.03,135.63,135.62,122.26676358]
[1742070380396,0.03,135.63,135.62,103.61711472]
[1742070384379,0.03,135.63,135.62,122.26676358]
[1742070390821,0.03,135.63,135.62,103.61711472]
[1742070391498,0.03,135.63,135.62,89.17]
[1742070392098,0.03,135.63,135.62,82.77]
[1742070392299,0.03,135.63,135.61,97.21711472]
[1742070392495,0.03,135.63,135.61,82.77]
[1742070393458,14.47711472,135.63,135.61,82.77]
[1742070394799,0.03,135.63,135.61,82.77]
[1742070398723,0.03,135.63,135.59,97.21711472]
[1742070404309,0.03,135.63,135.59,104.59221472]
[1742070404510,0.03,135.63,135.6,14.44711472]
[1742070407138,0.03,135.63,135.59,104.59221472]
[1742070408838,0.03,135.63,135.6,33.09676358]
[1742070409009,0.03,135.63,135.59,104.59221472]
[1742070414133,0.03,135.63,135.59,90.1451]
[1742070414334,14.47711472,135.63,135.59,90.1451]
[1742070415737,0.03,135.63,135.59,90.1451]
[1742070416136,14.44711472,135.62,135.59,82.77]
[1742070416323,14.44711472,135.61,135.58,0.063]
[1742070416818,21.82121472,135.61,135.58,0.063]
[1742070417136,14.44711472,135.6,135.58,0.063]
[1742070418616,21.82181472,135.6,135.58,0.063]
[1742070419028,14.44711472,135.6,135.58,0.063]
[1742070419239,21.82131472,135.61,135.58,0.063]
[1742070419716,14.44711472,135.6,135.58,0.063]
[1742070420550,21.82171472,135.6,135.58,0.063]
[1742070422432,14.44711472,135.6,135.58,0.063]
[1742070423650,14.44711472,135.59,135.58,0.063]
[1742070424044,7.3746,135.6,135.58,0.063]
[1742070424045,21.82171472,135.6,135.58,0.063]
[1742070429330,14.44711472,135.59,135.58,0.063]
[1742070431152,21.82221472,135.59,135.58,0.063]
[1742070434763,1.6291,135.6,135.58,0.063]
[1742070434764,14.44711472,135.6,135.58,0.063]
[1742070435450,7.3736,135.62,135.58,0.063]
[1742070435451,14.44711472,135.62,135.58,0.063]
[1742070435638,23.47931472,135.63,135.58,14.51011472]
[1742070436742,23.47931472,135.63,135.58,21.88541472]
[1742070437335,14.47711472,135.63,135.58,21.88541472]
[1742070442775,14.47711472,135.63,135.58,104.65541472]
[1742070448940,0.03,135.63,135.59,18.64964886]
[1742070449956,0.03,135.63,135.6,7.3746]
[1742070453751,0.03,135.63,135.6,21.82171472]
[1742070454859,0.03,135.63,135.6,7.3746]
[1742070460275,0.03,135.63,135.6,90.1446]
[1742070460572,0.6092283,135.63,135.6,90.1446]
[1742070461169,0.6092283,135.63,135.6,82.77]
[1742070461476,22.42944302,135.63,135.6,82.77]
[1742070462477,14.44711472,135.62,135.6,82.77]
[1742070462652,22.42944302,135.63,135.6,82.77]
[1742070466175,22.42944302,135.63,135.58,82.833]
[1742070467076,22.42944302,135.63,135.58,90.2087]
[1742070468271,22.42944302,135.63,135.58,0.063]
[1742070472563,14.44711472,135.61,135.58,0.063]
[1742070473562,14.44711472,135.6,135.58,0.063]
[1742070473867,14.44711472,135.59,135.58,0.063]
[1742070474779,21.82221472,135.59,135.58,0.063]
[1742070475584,22.40144302,135.59,135.58,0.063]
[1742070476382,22.68576616,135.59,135.58,0.063]
[1742070476679,81.8575165,135.59,135.58,0.063]
[1742070476884,24.06905762,135.59,135.58,0.063]
[1742070477073,42.71870648,135.59,135.58,0.063]
[1742070477389,100.50716536,135.59,135.58,0.063]
[1742070479181,22.68576616,135.59,135.58,0.063]
[1742070480684,8.23865144,135.59,135.58,0.063]
[1742070480870,22.68576616,135.59,135.58,0.063]
[1742070482469,15.16850459,135.59,135.58,0.063]
[1742070485481,15.02634302,135.59,135.58,0.063]
[1742070485672,0.5792283,135.59,135.58,0.063]
[1742070486494,0.6092283,135.59,135.58,0.063]
[1742070511108,0.6092283,135.59,135.58,18.71264886]
[1742070511608,0.6092283,135.59,135.58,0.063]
[1742070513691,15.05634302,135.59,135.58,0.063]
[1742070513895,22.43144302,135.59,135.58,0.063]
[1742070514209,22.57360459,135.59,135.58,0.063]
[1742070516196,0.6092283,135.59,135.58,0.063]
[1742070517819,22.43144302,135.59,135.58,0.063]
[1742070520329,15.05634302,135.59,135.58,0.063]
[1742070520502,0.6092283,135.59,135.58,0.063]
[1742070528118,0.6092283,135.59,135.58,14.51011472]
[1742070529833,0.6092283,135.59,135.58,21.88581472]
[1742070530008,0.6092283,135.59,135.58,7.4387]
[1742070530507,0.6092283,135.59,135.58,0.063]
[1742070572261,22.43144302,135.59,135.58,0.063]
[1742070572669,15.05634302,135.59,135.58,0.063]
[1742070573044,22.43144302,135.59,135.58,0.063]
[1742070576773,22.57360459,135.59,135.58,0.063]
[1742070577869,80.50422504,135.59,135.58,0.063]
[1742070578046,100.7782739,135.59,135.58,0.0001]
[1742070579867,24.34016616,135.59,135.58,0.0001]
[1742070580049,24.19800459,135.59,135.58,0.0001]
[1742070580369,15.19850459,135.59,135.58,0.0001]
[1742070587873,15.05634302,135.59,135.58,0.0001]
[1742070593880,22.43144302,135.59,135.58,0.0001]
[1742070601384,17.43144302,135.59,135.58,0.0001]
[1742070608983,17.57360459,135.59,135.58,0.0001]
[1742070609178,75.50422504,135.59,135.58,0.0001]
[1742070609372,94.1538739,135.59,135.58,0.0001]
[1742070614593,94.1838739,135.59,135.58,0.0001]
[1742070614790,22.13653786,135.59,135.58,0.0001]
[1742070614977,14.47711472,135.59,135.58,0.0001]
[1742070617695,21.85221472,135.59,135.58,0.0001]
[1742070617879,22.13653786,135.59,135.58,0.0001]
[1742070620703,14.47711472,135.59,135.58,0.0001]
[1742070622483,0.03,135.59,135.58,0.0001]
[1742070622795,0.03,135.59,135.58,7.3758]
[1742070628696,0.03,135.59,135.58,0.0001]
[1742070632413,14.47711472,135.59,135.58,0.0001]
[1742070639010,0.03,135.59,135.58,0.0001]
[1742070640808,14.47711472,135.59,135.58,0.0001]
[1742070641514,0.03,135.59,135.58,0.0001]
[1742070645520,0.03,135.59,135.58,14.44721472]
[1742070646328,0.03,135.59,135.58,21.82291472]
[1742070649011,0.03,135.59,135.58,0.0001]
[1742070650319,0.03,135.59,135.58,7.3758]
[1742070650818,0.03,135.59,135.58,0.0001]
[1742070654514,0.03,135.59,135.58,14.44721472]
[1742070655222,0.03,135.59,135.58,21.82291472]
[1742070661155,0.03,135.59,135.58,29.91881472]
[1742070662107,0.03,135.59,135.58,131.33846358]
[1742070664204,0.03,135.59,135.58,112.68881472]
[1742070664407,0.03,135.59,135.58,98.2417]
[1742070664628,0.03,135.59,135.58,112.68881472]
[1742070666128,0.03,135.59,135.58,82.7701]
[1742070666509,0.03,135.59,135.58,90.1458]
[1742070666917,0.03,135.59,135.58,104.59291472]
[1742070667636,0.03,135.59,135.58,90.1458]
[1742070671240,0.03,135.59,135.58,104.59291472]
[1742070674340,0.03,135.59,135.58,90.1458]
[1742070675239,0.03,135.59,135.58,0.0001]
[1742070676047,0.03,135.59,135.58,7.3758]
[1742070676541,0.03,135.59,135.58,0.0001]
[1742070689762,0.03,135.59,135.58,14.44721472]
[1742070689950,0.03,135.59,135.58,33.09686358]
[1742070691164,0.03,135.59,135.58,40.47256358]
[1742070692062,0.03,135.59,135.58,123.24256358]
[1742070693758,0.03,135.59,135.58,90.1458]
[1742070694139,0.03,135.59,135.58,82.7701]
[1742070695845,0.03,135.59,135.58,90.1458]
[1742070697868,0.03,135.59,135.58,7.3758]
[1742070705678,0.03,135.59,135.58,0.0001]
[1742070708481,14.61927629,135.59,135.58,0.0001]
[1742070710067,21.99437629,135.59,135.58,0.0001]
[1742070711257,82.85722698,135.59,135.58,0.0001]
[1742070712383,25.0687681,135.59,135.58,0.0001]
[1742070713159,82.85722698,135.59,135.58,0.0001]
[1742070713672,25.0687681,135.59,135.58,0.0001]
[1742070718475,82.85722698,135.59,135.58,0.0001]
[1742070720868,16.31043786,135.59,135.58,0.0001]
[1742070721069,0.03,135.59,135.58,0.0001]
[1742070724704,14.47711472,135.59,135.58,0.0001]
[1742070726384,22.13653786,135.59,135.58,0.0001]
[1742070726588,23.5198124,135.59,135.58,0.0001]
[1742070727178,81.30827128,135.59,135.58,0.0001]
[1742070727596,99.95792014,135.59,135.58,0.0001]
[1742070727983,23.5198124,135.59,135.58,0.0001]
[1742070728684,7.68942314,135.59,135.58,0.0001]
[1742070728885,22.13653786,135.59,135.58,0.0001]
[1742070732193,14.47711472,135.59,135.58,0.0001]
[1742070732398,0.03,135.59,135.58,0.0001]
[1742070734299,14.47711472,135.59,135.58,0.0001]
[1742070734988,0.03,135.59,135.58,0.0001]
[1742070736400,14.47711472,135.59,135.58,0.0001]
[1742070737298,0.03,135.59,135.58,0.0001]
[1742070739610,14.47711472,135.59,135.58,0.0001]
[1742070746610,0.03,135.59,135.58,0.0001]
[1742070756237,14.76143786,135.59,135.58,0.0001]
[1742070756594,99.0606456,135.59,135.58,0.0001]
[1742070758219,0.28432314,135.57,135.52,0.063]
[1742070758517,14.58927629,135.53,135.52,0.063]
[1742070760018,0.14216157,135.52,135.47,0.063]
[1742070760201,14.44711472,135.48,135.47,0.063]
[1742070761198,14.58927629,135.48,135.47,0.063]
[1742070762218,40.76218672,135.48,135.47,0.063]
[1742070762899,41.26218671,135.48,135.47,0.063]
[1742070763100,40.76218672,135.48,135.47,0.063]
[1742070764325,33.38108672,135.48,135.47,0.063]
[1742070765120,40.76218672,135.48,135.47,0.063]
[1742070766412,18.933972,135.47,135.44,0.063]
[1742070766614,14.58927629,135.45,135.44,0.063]
[1742070773912,99.9369475,135.45,135.44,0.063]
[1742070774816,99.9369475,135.45,135.41,0.063]
[1742070775016,14.58927629,135.42,135.41,0.063]
[1742070775217,15.97431717,135.42,135.41,0.063]
[1742070775410,14.58927629,135.42,135.41,0.063]
[1742070776737,14.58927629,135.45,135.41,0.063]
[1742070776941,14.73143786,135.45,135.41,0.063]
[1742070777230,14.44711472,135.44,135.41,0.063]
[1742070782550,14.58927629,135.45,135.41,0.063]
[1742070783359,14.44711472,135.44,135.41,0.063]
[1742070784749,0.14216157,135.45,135.41,0.063]
[1742070784945,14.58927629,135.45,135.41,0.063]
[1742070785137,14.44711472,135.44,135.41,0.063]
[1742070786349,14.44711472,135.43,135.41,0.063]
[1742070788539,14.44711472,135.42,135.41,0.063]
[1742070788746,14.58927629,135.43,135.41,0.063]
[1742070790052,14.44711472,135.42,135.41,0.063]
[1742070790632,14.58927629,135.43,135.41,0.063]
[1742070790932,14.44711472,135.42,135.41,0.063]
[1742070791231,0.28432314,135.41,135.4,0.063]
[1742070791435,34.76641314,135.41,135.38,0.063]
[1742070791634,14.58927629,135.39,135.38,0.063]
[1742070792447,34.44711472,135.4,135.38,0.063]
[1742070793940,0.14216157,135.4,135.38,0.063]
[1742070794244,14.44711472,135.42,135.38,0.063]
[1742070795053,14.44711472,135.43,135.38,14.51011472]
[1742070795357,0.14216157,135.43,135.38,14.51011472]
[1742070795648,14.58927629,135.43,135.38,14.51011472]
[1742070795864,14.44711472,135.42,135.38,0.063]
[1742070796067,14.44711472,135.42,135.38,7.4496]
[1742070797944,14.44711472,135.42,135.38,0.063]
[1742070801653,14.44711472,135.42,135.38,7.4496]
[1742070802655,14.44711472,135.4,135.38,0.063]
[1742070803155,14.44711472,135.41,135.38,0.063]
[1742070805364,14.44711472,135.4,135.38,0.063]
[1742070808049,14.73143786,135.39,135.38,0.063]
[1742070808755,6.48216157,135.41,135.38,0.063]
[1742070808756,14.44711472,135.41,135.38,0.063]
[1742070810652,14.44711472,135.4,135.38,0.063]
[1742070812168,21.83261472,135.4,135.38,0.063]
[1742070812345,14.73143786,135.39,135.38,0.063]
[1742070813464,22.11743786,135.39,135.38,0.063]
[1742070814548,14.73143786,135.39,135.38,0.063]
[1742070816343,22.11743786,135.39,135.38,0.063]
[1742070817765,40.76708672,135.39,135.38,0.063]
[1742070817970,47.10708672,135.39,135.38,0.063]
[1742070820474,28.45743786,135.39,135.38,0.063]
[1742070820650,21.07143786,135.39,135.38,0.063]
[1742070822365,20.78711472,135.39,135.38,0.063]
[1742070822569,1.385211,135.4,135.38,0.063]
[1742070822570,14.44711472,135.4,135.38,0.063]
[1742070823372,14.44711472,135.39,135.38,0.063]
[1742070828671,14.73143786,135.39,135.38,0.063]
[1742070828860,22.11743786,135.39,135.38,0.063]
[1742070830068,14.73143786,135.39,135.38,0.063]
[1742070830777,22.11743786,135.39,135.38,0.063]
[1742070836975,40.76708672,135.39,135.38,0.063]
[1742070837180,97.5555456,135.39,135.38,0.063]
[1742070837359,98.94107122,135.39,135.38,0.063]
[1742070838581,42.15261234,135.39,135.38,0.063]
[1742070839081,23.50296348,135.39,135.38,0.063]
[1742070840774,14.44711472,135.39,135.38,0.063]
[1742070841081,22.11743786,135.39,135.38,0.063]
[1742070841962,14.73143786,135.39,135.38,0.063]
[1742070843477,14.47711472,135.4,135.38,0.063]
[1742070846081,14.44711472,135.39,135.38,0.063]
[1742070847185,22.11743786,135.39,135.38,0.063]
[1742070847571,14.73143786,135.39,135.38,0.063]
[1742070848288,14.44711472,135.39,135.38,0.063]
[1742070850300,0.03,135.4,135.38,0.063]
[1742070850598,14.44711472,135.39,135.38,0.063]
[1742070853381,14.47711472,135.39,135.38,0.063]
[1742070853965,0.03,135.39,135.38,0.063]